fUSD/lending_fUSD_20240217
["ID","MTS","AMOUNT","RATE_DAILY","PERIOD"]
[314311303,1708175441204,-500.0,0.00035616,2]
[314311305,1708175441213,-500.0,0.00035616,2]
[314311307,1708175441222,-500.0,0.00035616,2]
[314311309,1708175441231,-500.0,0.00035616,2]
[314311311,1708175441240,-500.0,0.00035616,2]
[314311313,1708175441249,-500.0,0.00035616,2]
[314311315,1708175441258,-500.0,0.00035616,2]
[314311317,1708175441267,-500.0,0.00035616,2]
[314311319,1708175441276,-500.0,0.00035616,2]
[314311321,1708175441286,-500.0,0.00035616,2]
[314311323,1708175441295,-500.0,0.00035616,2]
[314311324,1708175441305,-500.0,0.00035616,2]
[314311325,1708175441314,-500.0,0.00035616,2]
[314311326,1708175441323,-500.0,0.00035616,2]
[314311327,1708175441332,-500.0,0.00035616,2]
[314311328,1708175441341,-500.0,0.00035616,2]
[314311329,1708175441350,-500.0,0.00035616,2]
[314311330,1708175441359,-1500.0,0.00035616,10]
[314311332,1708175441368,-155.0,0.00035617,2]
[314311334,1708175441378,-5991.57,0.00035798,2]
[314311336,1708175441387,-3045.28276672,0.00035882,8]
[314311338,1708175441396,-156.4,0.00036038,2]
[314311340,1708175441406,-1879.22,0.00036159,2]
[314311342,1708175441415,-181.58261503,0.00036289,2]
[314311344,1708175441424,-267.0,0.000363,7]
[314311346,1708175441433,-41358.73875067,0.00036389,2]
[314311348,1708175441442,-41358.73875066,0.00036389,2]
[314311350,1708175441451,-41358.73875066,0.00036389,2]
[314311352,1708175441459,-41358.73875066,0.00036389,2]
[314311354,1708175441468,-41358.73875066,0.00036389,2]
[314311356,1708175441477,-150.33,0.00036485,2]
[314311358,1708175441486,-40346.90677439,0.000365,7]
[314311360,1708175441495,-2551.43713194,0.00036721,2]
[314311362,1708175441504,-15106.07944133,0.00036798,2]
[314311364,1708175441513,-15106.07944127,0.00036798,2]
[314311366,1708175441522,-15106.07944127,0.00036798,2]
[314311368,1708175441531,-15106.07944127,0.00036798,2]
[314311370,1708175441540,-15106.07944127,0.00036798,2]
[314311372,1708175441549,-156.4,0.00036881,2]
[314311374,1708175441558,-1076.0,0.0003693,2]
[314311376,1708175441567,-228.85,0.00036955,2]
[314311378,1708175441576,-155.0,0.00036987,2]
[314311380,1708175441585,-5991.57,0.00037075,2]
[314311382,1708175441594,-150.33,0.00037093,2]
[314311384,1708175441604,-2810.40082674,0.00037111,2]
[314311386,1708175441613,-572.84511394,0.00037471,8]
[314311388,1708175441622,-153.31471587,0.00037518,2]
[314311390,1708175441631,-180.0,0.00037671,2]
[314311392,1708175441640,-15114.0,0.000377,2]
[314311394,1708175441649,-2232.0,0.000377,2]
[314311396,1708175441660,-150.33,0.00037701,2]
[314311398,1708175441669,-156.4,0.00037724,2]
[314311400,1708175441678,-3045.28276672,0.00037736,11]
[314311402,1708175441688,-93676.95,0.00037896,2]
[314311404,1708175441697,-114494.05,0.00037897,2]
[314311406,1708175441707,-24516.71370047,0.00037897,2]
[314311408,1708175441717,-667592.528495,0.000379,3]
[314311410,1708175441726,-15106.07944127,0.000379,2]
[314311412,1708175441736,-1000.0,0.00037925,2]
[314311414,1708175441745,-151.0,0.00037948,7]
[314311416,1708175441754,-209.18429795,0.0003799,7]
[314311419,1708175441764,-171616.99590329,0.00037997,2]
[314311421,1708175441773,-1000.0,0.00037999,2]
[314311423,1708175441782,-228.24502974,0.00037999,2]
[314311425,1708175441791,-184.22139781,0.00037999,2]
[314311426,1708175441799,-228.24502974,0.00037999,2]
[314311428,1708175441808,-184.22139781,0.00037999,2]
[314311431,1708175441819,-935.85066898,0.00038,2]
[314311433,1708175441828,-1903763.95679652,0.00038,2]
[314311435,1708175441837,-15663.82651064,0.00038,2]
[314311436,1708175441848,-41358.73875066,0.00038302,2]
[314311439,1708175441870,-150.33,0.00038309,2]
[314311440,1708175441894,-5991.57,0.00038352,2]
[314311442,1708175441923,-201.59,0.00038356,2]
[314311444,1708175441951,-385.32,0.00038356,15]
[314311446,1708175441971,-155.0,0.00038357,2]
[314311448,1708175441992,-3502.56,0.00038427,2]
[314311450,1708175442010,-228.85,0.00038434,2]
[314311452,1708175442019,-267.0,0.000385,7]
[314311454,1708175442028,-156.4,0.00038567,2]
[314311456,1708175442037,-2810.40082674,0.00038689,2]
[314311458,1708175442046,-151.0,0.00038722,4]
[314311460,1708175442055,-150.33,0.00038917,2]
[314311462,1708175442064,-325.84,0.0003899,3]
[314311464,1708175442074,-32665.2836308,0.00039,40]
[314311466,1708175442082,-200.0,0.00039136,120]
[314311468,1708175442092,-1076.0,0.00039194,2]
[314311470,1708175442101,-433.74,0.0003926,2]
[314311472,1708175442110,-156.4,0.0003941,2]
[314311474,1708175442119,-5268.49,0.000395,30]
[314311476,1708175442129,-151.0,0.00039513,2]
[314311478,1708175442138,-150.33,0.00039525,2]
[314311480,1708175442148,-3045.28276672,0.00039591,13]
[314311482,1708175442158,-153.31471587,0.00039606,5]
[314311484,1708175442168,-5991.57,0.0003963,2]
[314311486,1708175442177,-11929.98258675,0.000397,4]
[314311488,1708175442186,-155.0,0.00039727,2]
[314311490,1708175442195,-1270.47860103,0.00039891,2]
[314311492,1708175442205,-226.48,0.000399,2]
[314311494,1708175442214,-228.85,0.00039912,2]
[314311495,1708175442224,-470.59100194,0.00039999,31]
[314311497,1708175442233,-159.61444784,0.0004,30]
[314311499,1708175442242,-60561.57189229,0.0004,30]
[314311501,1708175442251,-571.62122995,0.0004,2]
[314311502,1708175442260,-3118.14801883,0.0004,2]
[314311504,1708175442270,-795.2,0.0004,2]
[314311506,1708175442279,-205.0,0.0004,2]
[314311507,1708175442288,-1000.0,0.00040074,2]
[314311509,1708175442296,-150.33,0.00040133,2]
[314311511,1708175442305,-17788.0,0.00040179,2]
[314311513,1708175442314,-156.4,0.00040253,2]
[314311514,1708175442323,-2810.40082674,0.00040268,5]
[314311516,1708175442332,-572.84511394,0.00040386,9]
[314311518,1708175442341,-267.0,0.000406,7]
[314311520,1708175442349,-433.74,0.00040733,2]
[314311522,1708175442358,-169.33,0.00040752,2]
[314311523,1708175442368,-15106.07944127,0.000409,3]
[314311525,1708175442377,-66019.60119702,0.00040966,2]
[314311527,1708175442386,-23017.94119475,0.00040966,32]
[314311529,1708175442395,-1103.54391099,0.00040966,3]
[314311530,1708175442406,-15931.47244674,0.00040966,2]
[314311532,1708175442415,-275.15622716,0.00040966,30]
[314311534,1708175442423,-216.5760994,0.00040966,30]
[314311535,1708175442432,-155.56468996,0.00040966,120]
[314311537,1708175442442,-5358.94753529,0.00040966,2]
[314311539,1708175442451,-283.32387974,0.00040966,2]
[314311541,1708175442461,-468.77508963,0.00040966,2]
[314311543,1708175442470,-159.35404023,0.00040966,30]
[314311544,1708175442480,-155.39982316,0.00040966,2]
[314311546,1708175442489,-385.13127339,0.00040966,2]
[314311548,1708175442498,-17905.96232048,0.00040966,2]
[314311550,1708175442507,-5095.71440095,0.00040966,4]
[314311551,1708175442516,-32666.56886121,0.00040966,120]
[314311553,1708175442525,-201.59239623,0.00040966,120]
[314311555,1708175442534,-466.0482353,0.00040966,2]
[314311557,1708175442544,-656.47572142,0.00040966,2]
[314311558,1708175442553,-311.01975504,0.00040966,2]
[314311560,1708175442563,-1224.17933206,0.00040966,4]
[314311562,1708175442573,-2543.56387118,0.00040966,2]
[314311563,1708175442582,-9008.17816563,0.00040966,4]
[314311565,1708175442591,-7137.90270717,0.00040966,7]
[314311567,1708175442600,-3983.18835857,0.00040966,120]
[314311569,1708175442609,-5514.42836242,0.00040966,13]
[314311570,1708175442618,-2644.91665641,0.00040966,2]
[314311572,1708175442628,-6224.69585873,0.00040966,4]
[314311574,1708175442636,-156.29488104,0.00040966,2]
[314311576,1708175442646,-17186.66812909,0.00040966,2]
[314311578,1708175442658,-1808.63572407,0.00040966,2]
[314311579,1708175442667,-169.71709592,0.00040966,120]
[314311581,1708175442676,-20009.47953652,0.00040966,2]
[314311583,1708175442686,-155.29370094,0.00040966,2]
[314311584,1708175442696,-306.59704943,0.00040966,120]
[314311585,1708175442706,-701.82634713,0.00040966,30]
[314311586,1708175442716,-163.94316074,0.00040966,120]
[314311587,1708175442725,-151.34673705,0.00040966,30]
[314311588,1708175442735,-158.00946671,0.00040966,60]
[314311589,1708175442745,-437.6563897,0.00040966,14]
[314311590,1708175442754,-5591.19704119,0.00040966,120]
[314311591,1708175442764,-4451.18179673,0.00040966,4]
[314311592,1708175442773,-199.26055783,0.00040966,30]
[314311593,1708175442783,-807.2490428,0.00040966,2]
[314311594,1708175442792,-29000.0,0.00040966,4]
[314311595,1708175442802,-5630.66900529,0.00040966,2]
[314311596,1708175442812,-184.22139781,0.00040999,3]
[314311597,1708175442821,-228.24502974,0.00040999,3]
[314311598,1708175442831,-100000.0,0.00041,21]
[314311600,1708175442840,-238.19867172,0.00041,30]
[314311602,1708175442850,-800.0,0.00041,2]
[314311603,1708175442859,-166.0,0.00041,2]
[314311605,1708175442868,-150.808351,0.00041,2]
[314311607,1708175442877,-2500.0,0.00041095,2]
[314311608,1708175442887,-750.0,0.00041095,2]
[314311609,1708175442897,-198.42759781,0.00041095,7]
[314311610,1708175442911,-269.19964425,0.00041095,7]
[314311611,1708175442921,-280.34184015,0.00041095,7]
[314311612,1708175442930,-209.16909667,0.00041095,7]
[314311613,1708175442941,-156.4,0.00041096,2]
[314311614,1708175442951,-155.0,0.00041097,2]
[314311615,1708175442961,-2000.0,0.000411,2]
[314311616,1708175442970,-205.0,0.00041333,10]
[314311617,1708175442980,-41358.73875066,0.00041383,3]
[314311618,1708175442989,-3045.28276672,0.00041445,15]
[314311619,1708175442999,-1076.0,0.00041458,2]
[314311620,1708175443008,-150.0,0.00041465,7]
[314311621,1708175443017,-150.0,0.00041465,7]
[314311622,1708175443027,-150.0,0.00041465,7]
[314311623,1708175443037,-153.31471587,0.00041694,13]
[314311624,1708175443046,-186.02,0.000418,4]
[314311625,1708175443154,-186.02,0.000418,4]
[314311627,1708175443166,-186.02,0.000418,4]
[314311628,1708175443176,-186.02,0.000418,4]
[314311629,1708175443185,-186.02,0.000418,4]
[314311630,1708175443194,-186.02,0.000418,4]
[314311632,1708175443204,-186.02,0.000418,4]
[314311633,1708175443214,-186.02,0.000418,4]
[314311634,1708175443224,-186.02,0.000418,4]
[314311635,1708175443233,-186.02,0.000418,4]
[314311636,1708175443242,-186.02,0.000418,4]
[314311637,1708175443253,-186.02,0.000418,4]
[314311638,1708175443263,-186.02,0.000418,4]
[314311639,1708175443272,-186.02,0.000418,4]
[314311640,1708175443281,-186.02,0.000418,4]
[314311641,1708175443290,-186.02,0.000418,4]
[314311642,1708175443299,-186.02,0.000418,4]
[314311643,1708175443309,-186.02,0.000418,4]
[314311644,1708175443318,-186.02,0.000418,4]
[314311645,1708175443327,-186.02,0.000418,4]
[314311646,1708175443336,-150.0,0.00041835,7]
[314311647,1708175443348,-150.0,0.00041835,7]
[314311648,1708175443359,-150.0,0.00041835,7]
[314311649,1708175443373,-2810.40082674,0.00041847,5]
[314311650,1708175443383,-192.29,0.0004189,120]
[314311651,1708175443392,-150.5,0.0004189,120]
[314311652,1708175443402,-150.5,0.000419,120]
[314311653,1708175443414,-150.5,0.000419,120]
[314311654,1708175443424,-150.5,0.0004191,120]
[314311655,1708175443437,-150.5,0.0004191,120]
[314311656,1708175443447,-332.60186682,0.00041931,30]
[314311657,1708175443458,-231.21,0.00041935,120]
[314311658,1708175443468,-173.51,0.00041935,120]
[314311659,1708175443479,-100000.0,0.00042,22]
[314311660,1708175443488,-338.5789,0.00042,59]
[314311661,1708175443497,-316.03132048,0.00042,2]
[314311662,1708175443507,-965.47916117,0.00042,7]
[314311663,1708175443516,-8722.5118314,0.00042,2]
[314311664,1708175443526,-1231.24686331,0.00042,120]
[314311665,1708175443535,-198286.10475032,0.00042,4]
[314311666,1708175443547,-7464.35666775,0.00042,2]
[314311667,1708175443558,-1297.63261035,0.0004201,2]
[314311668,1708175443568,-385.32,0.00042092,15]
[314311669,1708175443578,-1000.0,0.00042139,2]
[314311670,1708175443588,-64191.4678188,0.0004217,13]
[314311671,1708175443598,-24461.53196387,0.00042196,14]
[314311672,1708175443607,-14063.82318209,0.00042196,13]
[314311673,1708175443617,-150.0,0.00042205,7]
[314311674,1708175443627,-150.0,0.00042205,7]
[314311675,1708175443636,-433.74,0.00042205,2]
[314311676,1708175443646,-750.0,0.00042465,3]
[314311677,1708175443657,-155.0,0.00042467,2]
[314311678,1708175443667,-5000.0,0.000425,35]
[314311679,1708175443678,-150.0,0.00042574,7]
[314311680,1708175443687,-332.60186682,0.00042617,30]
[314311681,1708175443697,-205.0,0.00042667,10]
[314311682,1708175443706,-332.60186682,0.00042696,30]
[314311683,1708175443716,-264348.20538451,0.00042819,5]
[314311684,1708175443726,-3444.48866904,0.00042888,32]
[314311685,1708175443736,-730.0589355,0.00042897,10]
[314311687,1708175443746,-267.0,0.000429,7]
[314311689,1708175443755,-332.60186682,0.00042909,30]
[314311691,1708175443764,-150.0,0.00042944,7]
[314311693,1708175443773,-166.05101382,0.00042953,30]
[314311694,1708175443783,-184.22139781,0.00042997,4]
[314311696,1708175443792,-228.24502974,0.00042997,4]
[314311698,1708175443801,-330750.26468739,0.00042998,3]
[314311700,1708175443812,-100000.0,0.00043,23]
[314311701,1708175443821,-244.41,0.00043104,2]
[314311703,1708175443831,-158.23203844,0.00043227,30]
[314311706,1708175443840,-332.60186682,0.00043296,30]
[314311708,1708175443850,-3045.28276672,0.000433,18]
[314311710,1708175443859,-196.9897425,0.000433,2]
[314311712,1708175443869,-207.33850733,0.000433,2]
[314311713,1708175443879,-3541.11439597,0.000433,2]
[314311715,1708175443888,-200.95724061,0.000433,2]
[314311717,1708175443897,-572.84511394,0.000433,11]
[314311719,1708175443909,-364.70327864,0.000433,2]
[314311721,1708175443918,-1292.19800863,0.000433,2]
[314311723,1708175443927,-334.31838921,0.00043326,33]
[314311725,1708175443937,-332.60186682,0.00043331,30]
[314311727,1708175443947,-166.05101382,0.00043368,30]
[314311729,1708175443960,-184.22139781,0.00043399,4]
[314311731,1708175443969,-228.24502974,0.00043399,4]
[314311733,1708175443979,-228.24502974,0.00043399,4]
[314311735,1708175443991,-184.22139781,0.00043399,4]
[314311737,1708175444000,-2061204.72961023,0.000434,3]
[314311738,1708175444010,-328.83043744,0.000434,2]
[314311739,1708175444019,-418.27758908,0.000434,2]
[314311740,1708175444028,-2810.40082674,0.00043426,5]
[314311741,1708175444039,-200.0,0.00043485,120]
[314311742,1708175444049,-433.74,0.00043677,2]
[314311743,1708175444059,-332.60186682,0.00043681,30]
[314311744,1708175444068,-1076.0,0.00043722,2]
[314311745,1708175444077,-153.31471587,0.00043782,21]
[314311746,1708175444087,-1000.0,0.000438,2]
[314311747,1708175444096,-250.0,0.00043835,7]
[314311748,1708175444106,-155.0,0.00043837,2]
[314311750,1708175444115,-15106.07944127,0.000439,6]
[314311752,1708175444125,-151.0,0.00043903,2]
[314311754,1708175444134,-250.49088,0.00043903,2]
[314311756,1708175444143,-332.60186682,0.00043931,30]
[314311758,1708175444153,-100000.0,0.00044,24]
[314311760,1708175444164,-205.0,0.00044,13]
[314311762,1708175444174,-1000.0,0.00044059,2]
[314311764,1708175444183,-334.3183892,0.00044238,37]
[314311766,1708175444193,-332.60186682,0.00044304,30]
[314311768,1708175444202,-500.0,0.00044383,7]
[314311770,1708175444211,-332.60186682,0.00044433,30]
[314311772,1708175444221,-41358.73875066,0.00044463,6]
[314311774,1708175444230,-302.0,0.00044641,4]
[314311776,1708175444239,-2000.0,0.000447,2]
[314311778,1708175444250,-542.3842,0.0004474,2]
[314311780,1708175444259,-156.66,0.0004479,120]
[314311782,1708175444268,-176088.8944,0.000448,2]
[314311784,1708175444278,-332.60186682,0.00044802,30]
[314311786,1708175444287,-332.60186682,0.00044885,30]
[314311789,1708175444296,-332.60186682,0.00044914,30]
[314311791,1708175444305,-750.0,0.00044931,7]
[314311793,1708175444314,-100000.0,0.00045,35]
[314311795,1708175444323,-167.05723787,0.00045,4]
[314311797,1708175444332,-4833.78305591,0.00045,17]
[314311799,1708175444342,-404.92800675,0.00045,4]
[314311800,1708175444351,-60155.54110167,0.00045,7]
[314311802,1708175444360,-2810.40082674,0.00045005,5]
[314311805,1708175444370,-433.74,0.00045149,2]
[314311807,1708175444379,-334.3183892,0.00045151,42]
[314311809,1708175444389,-186.02,0.000452,5]
[314311811,1708175444398,-186.02,0.000452,5]
[314311813,1708175444409,-186.02,0.000452,5]
[314311815,1708175444418,-186.02,0.000452,5]
[314311817,1708175444427,-186.02,0.000452,5]
[314311819,1708175444436,-186.02,0.000452,5]
[314311821,1708175444446,-186.02,0.000452,5]
[314311823,1708175444455,-186.02,0.000452,5]
[314311825,1708175444465,-186.02,0.000452,5]
[314311827,1708175444475,-186.02,0.000452,5]
[314311829,1708175444486,-186.02,0.000452,5]
[314311831,1708175444495,-186.02,0.000452,5]
[314311833,1708175444505,-186.02,0.000452,5]
[314311835,1708175444514,-186.02,0.000452,5]
[314311837,1708175444524,-186.02,0.000452,5]
[314311840,1708175444536,-186.02,0.000452,5]
[314311842,1708175444546,-186.02,0.000452,5]
[314311844,1708175444555,-186.02,0.000452,5]
[314311846,1708175444567,-186.02,0.000452,5]
[314311848,1708175444577,-186.02,0.000452,5]
[314311850,1708175444586,-168.79,0.00045205,2]
[314311852,1708175444595,-162.20812429,0.00045207,2]
[314311854,1708175444604,-205.0,0.00045333,17]
[314311856,1708175444614,-604.0,0.00045391,7]
[314311858,1708175444623,-332.60186682,0.00045402,30]
[314311860,1708175444632,-1000.0,0.00045479,7]
[314311862,1708175444641,-332.60186682,0.00045639,30]
[314311864,1708175444651,-332.60186682,0.00045708,30]
[314311866,1708175444661,-385.32,0.00045828,15]
[314311868,1708175444671,-332.60186682,0.00045854,30]
[314311870,1708175444680,-153.31471587,0.00045871,28]
[314311872,1708175444689,-332.60186682,0.0004597,30]
[314311874,1708175444698,-1076.0,0.00045986,2]
[314311876,1708175444708,-100000.0,0.00046,36]
[314311878,1708175444717,-2252.68375417,0.00046,4]
[314311880,1708175444726,-1000.0,0.00046,17]
[314311883,1708175444736,-2252.68375417,0.00046,4]
[314311885,1708175444745,-1250.0,0.00046027,7]
[314311887,1708175444754,-334.3183892,0.00046063,47]
[314311889,1708175444763,-166.99392,0.00046154,4]
[314311891,1708175444772,-1000.0,0.00046353,2]
[314311893,1708175444781,-1208.0,0.0004654,30]
[314311895,1708175444791,-1500.0,0.00046575,7]
[314311897,1708175444800,-2810.40082674,0.00046584,5]
[314311899,1708175444809,-1000.0,0.000466,2]
[314311901,1708175444818,-332.60186682,0.00046639,30]
[314311903,1708175444826,-205.0,0.00046667,21]
[314311905,1708175444836,-1639.0,0.000467,115]
[314311907,1708175444845,-15106.07944127,0.000469,8]
[314311909,1708175444854,-332.60186682,0.00046969,30]
[314311911,1708175444863,-334.3183892,0.00046975,52]
[314311912,1708175444873,-228.24502974,0.00046999,6]
[314311915,1708175444883,-184.22139781,0.00046999,6]
[314311917,1708175444891,-100000.0,0.00047,37]
[314311919,1708175444900,-332.60186682,0.00047045,30]
[314311921,1708175444910,-1750.0,0.00047123,7]
[314311923,1708175444919,-1879.22,0.00047391,120]
[314311925,1708175444928,-2000.0,0.000474,2]
[314311927,1708175444938,-41358.73875066,0.00047544,9]
[314311929,1708175444948,-158.23203844,0.00047602,30]
[314311931,1708175444959,-150.0,0.0004764,7]
[314311933,1708175444969,-2000.0,0.00047671,7]
[314311935,1708175444978,-150.0,0.00047743,7]
[314311937,1708175444987,-200.0,0.00047833,120]
[314311949,1708175445093,-334.3183892,0.00047887,56]
[314311951,1708175445102,-153.31471587,0.00047959,36]
[314311953,1708175445111,-100000.0,0.00048,38]
[314311955,1708175445120,-205.0,0.00048,25]
[314311957,1708175445129,-157.0,0.00048023,30]
[314311959,1708175445138,-1000.0,0.00048045,2]
[314311961,1708175445148,-158.23203844,0.00048067,30]
[314311963,1708175445158,-150.0,0.00048162,7]
[314311965,1708175445167,-2810.40082674,0.00048163,5]
[314311968,1708175445176,-1530.49615152,0.00048219,7]
[314311970,1708175445185,-1076.0,0.0004825,2]
[314311972,1708175445195,-300.0,0.00048268,7]
[314311974,1708175445204,-228.24502974,0.00048285,8]
[314311976,1708175445213,-184.22139781,0.00048285,8]
[314311978,1708175445222,-300.0,0.00048291,7]
[314311980,1708175445230,-150.0,0.00048302,7]
[314311982,1708175445240,-1500.0,0.00048314,7]
[314311984,1708175445249,-150.0,0.0004832,7]
[314311986,1708175445258,-8068.51835413,0.0004835,7]
[314311988,1708175445267,-166.05101382,0.00048356,30]
[314311990,1708175445276,-150.0,0.0004836,7]
[314311991,1708175445285,-300.0,0.00048368,7]
[314311994,1708175445294,-150.0,0.00048369,7]
[314311995,1708175445303,-300.0,0.0004837,7]
[314311997,1708175445312,-300.0,0.00048372,7]
[314311999,1708175445321,-150.0,0.00048398,7]
[314312001,1708175445330,-300.0,0.00048428,7]
[314312003,1708175445339,-150.0,0.00048446,7]
[314312006,1708175445349,-1500.0,0.00048452,7]
[314312007,1708175445357,-150.0,0.00048476,7]
[314312009,1708175445367,-150.0,0.00048479,7]
[314312011,1708175445376,-150.0,0.0004848,7]
[314312013,1708175445385,-989.48310961,0.00048485,7]
[314312015,1708175445393,-150.0,0.00048493,7]
[314312018,1708175445403,-1500.0,0.00048504,7]
[314312019,1708175445413,-150.0,0.00048506,7]
[314312021,1708175445422,-150.0,0.00048523,7]
[314312024,1708175445431,-300.0,0.0004853,7]
[314312026,1708175445441,-300.0,0.00048545,7]
[314312028,1708175445450,-1500.0,0.00048564,7]
[314312030,1708175445459,-150.0,0.00048568,7]
[314312032,1708175445468,-157.0,0.00048571,30]
[314312034,1708175445477,-300.0,0.0004859,7]
[314312036,1708175445487,-186.02,0.000486,6]
[314312038,1708175445496,-186.02,0.000486,6]
[314312040,1708175445505,-186.02,0.000486,6]
[314312042,1708175445514,-186.02,0.000486,6]
[314312044,1708175445523,-186.02,0.000486,6]
[314312046,1708175445532,-186.02,0.000486,6]
[314312048,1708175445541,-186.02,0.000486,6]
[314312050,1708175445550,-186.02,0.000486,6]
[314312052,1708175445559,-186.02,0.000486,6]
[314312054,1708175445569,-186.02,0.000486,6]
[314312056,1708175445577,-186.02,0.000486,6]
[314312058,1708175445586,-186.02,0.000486,6]
[314312059,1708175445595,-186.02,0.000486,6]
[314312062,1708175445605,-186.02,0.000486,6]
[314312063,1708175445614,-186.02,0.000486,6]
[314312066,1708175445623,-186.02,0.000486,6]
[314312067,1708175445633,-186.02,0.000486,6]
[314312070,1708175445642,-186.02,0.000486,6]
[314312072,1708175445651,-186.02,0.000486,6]
[314312074,1708175445662,-186.02,0.000486,6]
[314312076,1708175445671,-150.0,0.00048607,7]
[314312078,1708175445680,-150.0,0.00048611,7]
[314312080,1708175445689,-150.0,0.00048619,7]
[314312082,1708175445699,-300.0,0.00048626,7]
[314312084,1708175445708,-150.0,0.00048638,7]
[314312086,1708175445717,-300.0,0.00048658,7]
[314312088,1708175445726,-150.0,0.00048663,7]
[314312090,1708175445735,-150.0,0.00048665,7]
[314312092,1708175445744,-165.69732456,0.00048666,18]
[314312094,1708175445753,-150.0,0.00048678,7]
[314312096,1708175445762,-150.0,0.00048678,7]
[314312098,1708175445772,-300.0,0.00048682,7]
[314312100,1708175445781,-150.0,0.00048683,7]
[314312101,1708175445790,-150.0,0.00048684,7]
[314312104,1708175445799,-1013.0,0.000487,7]
[314312106,1708175445808,-150.0,0.00048703,7]
[314312108,1708175445817,-150.0,0.00048707,7]
[314312110,1708175445827,-150.0,0.0004872,7]
[314312112,1708175445836,-150.0,0.00048724,7]
[314312114,1708175445845,-150.0,0.00048726,7]
[314312116,1708175445854,-150.0,0.00048727,7]
[314312117,1708175445863,-150.0,0.00048727,7]
[314312119,1708175445873,-150.0,0.00048732,7]
[314312122,1708175445882,-150.0,0.00048735,7]
[314312123,1708175445891,-1500.0,0.00048749,7]
[314312125,1708175445900,-150.0,0.0004877,7]
[314312127,1708175445911,-150.0,0.00048772,7]
[314312129,1708175445920,-150.0,0.00048772,7]
[314312131,1708175445929,-150.0,0.00048782,7]
[314312133,1708175445938,-1500.0,0.00048786,7]
[314312135,1708175445948,-300.0,0.0004879,7]
[314312137,1708175445960,-150.0,0.00048792,7]
[314312139,1708175445970,-150.0,0.00048795,7]
[314312141,1708175445979,-334.3183892,0.000488,61]
[314312143,1708175445988,-150.0,0.00048801,7]
[314312145,1708175445999,-150.0,0.00048804,7]
[314312147,1708175446008,-150.0,0.00048808,7]
[314312149,1708175446017,-150.0,0.0004882,7]
[314312151,1708175446026,-150.0,0.0004883,7]
[314312153,1708175446036,-150.0,0.00048831,7]
[314312155,1708175446045,-150.0,0.00048837,7]
[314312157,1708175446055,-150.0,0.00048846,7]
[314312159,1708175446064,-300.0,0.00048847,7]
[314312161,1708175446075,-150.0,0.00048849,7]
[314312163,1708175446084,-150.0,0.00048853,7]
[314312165,1708175446093,-150.0,0.00048854,7]
[314312168,1708175446104,-300.0,0.00048859,7]
[314312171,1708175446125,-150.0,0.00048859,7]
[314312173,1708175446135,-2915.50708,0.0004887,44]
[314312175,1708175446145,-150.0,0.0004887,7]
[314312177,1708175446154,-25997.55481538,0.0004889,2]
[314312179,1708175446166,-150.0,0.00048899,7]
[314312181,1708175446176,-222.33246315,0.000489,120]
[314312183,1708175446185,-150.0,0.00048906,7]
[314312185,1708175446195,-150.0,0.00048908,7]
[314312187,1708175446204,-150.0,0.00048916,7]
[314312189,1708175446213,-150.0,0.00048921,7]
[314312191,1708175446222,-300.0,0.00048935,7]
[314312193,1708175446231,-150.0,0.00048942,7]